bitfinex/quotes_SOLUSD_20241103
["timestamp","ask_amount","ask_price","bid_price","bid_amount"]
[1730600739518,28.78373457,163.59,163.55,6.2799]
[1730600740133,28.78373457,163.56,163.51,35.06363457]
[1730600740313,28.78373457,163.56,163.51,6.2799]
[1730600740510,52.56061857,163.57,163.52,28.78373457]
[1730600740923,52.56061857,163.57,163.51,41.17933457]
[1730600741128,52.56061857,163.57,163.52,28.78373457]
[1730600741538,52.56061857,163.57,163.51,35.06363457]
[1730600742058,28.78373457,163.56,163.51,6.2799]
[1730600742231,28.78373457,163.55,163.51,6.2799]
[1730600742418,23.776884,163.57,163.47,35.06363457]
[1730600742419,28.78373457,163.53,163.47,35.06363457]
[1730600742618,28.78373457,163.53,163.47,41.18093457]
[1730600742820,49.06621032,163.69,163.5,28.78373457]
[1730600742821,28.78373457,163.55,163.5,28.78373457]
[1730600743213,28.78373457,163.55,163.47,27.6905]
[1730600743214,52.56061857,163.54,163.48,28.78373457]
[1730600743424,28.78373457,163.51,163.47,27.6905]
[1730600743615,28.78373457,163.51,163.47,6.2799]
[1730600744340,28.78373457,163.48,163.44,15.6426]
[1730600744544,98.78373457,163.52,163.44,44.42633457]
[1730600744545,70.0,163.52,163.44,44.42633457]
[1730600744736,23.776884,163.51,163.47,28.78373457]
[1730600744922,23.776884,163.52,163.47,28.78373457]
[1730600745126,52.56061857,163.52,163.47,28.78373457]
[1730600745548,23.776884,163.52,163.47,34.90093457]
[1730600745728,23.776884,163.53,163.49,28.78373457]
[1730600745938,52.56061857,163.53,163.48,28.78373457]
[1730600746248,28.78373457,163.5,163.44,44.42633457]
[1730600746550,23.776884,163.5,163.45,28.78373457]
[1730600746854,28.78373457,163.51,163.45,28.78373457]
[1730600747154,28.78373457,163.52,163.46,28.78373457]
[1730600747646,28.78373457,163.51,163.46,28.78373457]
[1730600748044,28.78373457,163.51,163.45,28.78373457]
[1730600748243,28.78373457,163.5,163.45,28.78373457]
[1730600748541,28.78373457,163.52,163.46,28.78373457]
[1730600748743,28.78373457,163.51,163.46,28.78373457]
[1730600749050,28.78373457,163.52,163.46,28.78373457]
[1730600749555,28.78373457,163.51,163.46,28.78373457]
[1730600749754,28.78373457,163.51,163.45,28.78373457]
[1730600750551,28.78373457,163.52,163.46,28.78373457]
[1730600750853,23.776884,163.53,163.48,28.78373457]
[1730600751152,28.78373457,163.54,163.49,28.78373457]
[1730600751454,28.78373457,163.54,163.48,28.78373457]
[1730600751660,28.78373457,163.54,163.49,28.78373457]
[1730600751831,23.776884,163.55,163.5,28.78373457]
[1730600752148,52.56061857,163.55,163.5,28.78373457]
[1730600752352,28.78373457,163.55,163.5,28.78373457]
[1730600752650,28.78373457,163.6,163.54,28.78373457]
[1730600752851,28.78373457,163.59,163.54,28.78373457]
[1730600753158,6.112,163.62,163.56,28.78373457]
[1730600753350,28.78373457,163.61,163.55,28.78373457]
[1730600753552,34.89573457,163.62,163.56,28.78373457]
[1730600753845,34.89573457,163.62,163.52,35.00523457]
[1730600753846,28.78373457,163.61,163.55,28.78373457]
[1730600754445,70.0,163.57,163.53,28.78373457]
[1730600754656,98.78373457,163.57,163.51,28.78373457]
[1730600754867,52.56061857,163.56,163.5,28.78373457]
[1730600755068,52.56061857,163.56,163.51,28.78373457]
[1730600755650,23.776884,163.56,163.51,28.78373457]
[1730600756030,23.776884,163.54,163.49,28.78373457]
[1730600756252,52.56061857,163.54,163.48,35.00523457]
[1730600756762,28.78373457,163.53,163.48,6.2215]
[1730600756928,28.78373457,163.52,163.46,28.78373457]
[1730600757131,28.78373457,163.51,163.46,28.78373457]
[1730600757356,52.56061857,163.49,163.44,6.2215]
[1730600757527,28.78373457,163.48,163.42,28.78373457]
[1730600758144,1.05778067,163.5,163.41,0.1]
[1730600758344,6.1154,163.53,163.47,28.78373457]
[1730600758345,58.67591857,163.53,163.47,28.78373457]
[1730600758548,23.776884,163.51,163.46,28.78373457]
[1730600758742,23.776884,163.51,163.47,28.78373457]
[1730600758945,23.776884,163.51,163.4,43.7501927]
[1730600758946,23.776884,163.51,163.46,28.78373457]
[1730600759141,23.776884,163.52,163.47,28.78373457]
[1730600759355,23.776884,163.52,163.49,28.78373457]
[1730600759556,23.776884,163.52,163.47,28.78373457]
[1730600760347,1.05767891,163.53,163.48,28.78373457]
[1730600760543,101.93875219,163.58,163.52,28.78373457]
[1730600760744,28.78373457,163.55,163.5,28.78373457]
[1730600760951,28.78373457,163.55,163.49,35.00523457]
[1730600761452,28.78373457,163.55,163.5,28.78373457]
[1730600762041,23.776884,163.54,163.49,35.00523457]
[1730600762241,23.776884,163.54,163.51,28.78373457]
[1730600762644,23.776884,163.55,163.52,28.78373457]
[1730600763760,23.776884,163.55,163.54,28.78373457]
[1730600763945,23.776884,163.55,163.53,28.78373457]
[1730600764270,23.776884,163.55,163.51,28.78373457]
[1730600764643,29.891284,163.55,163.52,28.78373457]
[1730600764849,23.776884,163.53,163.5,28.78373457]
[1730600765268,23.776884,163.53,163.52,28.78373457]
[1730600766464,23.776884,163.51,163.5,28.78373457]
[1730600767354,23.776884,163.49,163.48,28.78373457]
[1730600767945,23.776884,163.49,163.44,28.78373457]
[1730600767946,23.776884,163.47,163.46,28.78373457]
[1730600769548,23.776884,163.5,163.46,28.78373457]
[1730600769748,23.776884,163.5,163.49,28.78373457]
[1730600770149,53.776884,163.5,163.49,28.78373457]
[1730600770859,53.776884,163.5,163.48,28.78373457]
[1730600771067,23.776884,163.48,163.45,28.78373457]
[1730600771381,23.776884,163.48,163.47,28.78373457]
[1730600771873,24.8343256,163.48,163.47,28.78373457]
[1730600774574,30.0,163.5,163.47,28.78373457]
[1730600774786,30.0,163.5,163.44,28.78373457]
[1730600774787,23.776884,163.49,163.44,28.78373457]
[1730600775073,1.05749389,163.51,163.48,57.56746914]
[1730600775276,1.05749389,163.51,163.5,57.56746914]
[1730600776080,6.1151,163.53,163.5,57.56746914]
[1730600776250,29.891984,163.53,163.52,57.56746914]
[1730600776455,23.776884,163.53,163.52,57.56746914]
[1730600776981,29.891884,163.53,163.52,28.78373457]
[1730600777273,29.891884,163.53,163.52,57.56746914]
[1730600781674,29.991884,163.53,163.44,28.78373457]
[1730600781985,23.776884,163.48,163.44,28.78373457]
[1730600782353,70.0,163.51,163.44,28.78373457]
[1730600782753,70.0,163.48,163.44,28.78373457]
[1730600782973,70.0,163.46,163.44,28.78373457]
[1730600783153,0.1,163.5,163.44,28.78373457]
[1730600783154,70.0,163.48,163.44,28.78373457]
[1730600783355,70.0,163.48,163.47,28.78373457]
[1730600783659,70.0,163.5,163.47,28.78373457]
[1730600783958,76.1165,163.5,163.48,28.78373457]
[1730600784961,70.0,163.48,163.47,28.78373457]
[1730600785167,70.0,163.46,163.44,28.78373457]
[1730600785361,70.0,163.46,163.43,28.78373457]
[1730600785766,70.0,163.44,163.41,6.4415]
[1730600785972,70.0,163.44,163.43,28.78373457]
[1730600786474,70.0,163.48,163.43,28.78373457]
[1730600786682,70.0,163.48,163.47,28.78373457]
[1730600787182,70.0,163.48,163.45,28.78373457]
[1730600787683,70.0,163.46,163.44,28.78373457]
[1730600787871,70.0,163.46,163.43,28.78373457]
[1730600788070,6.117,163.48,163.44,28.78373457]
[1730600788071,76.117,163.48,163.44,28.78373457]
[1730600788274,76.117,163.48,163.45,28.78373457]
[1730600788475,76.117,163.48,163.41,6.4415]
[1730600788476,70.0,163.48,163.47,28.78373457]
[1730600788662,70.0,163.48,163.46,28.78373457]
[1730600789166,70.0,163.46,163.42,28.78373457]
[1730600789364,70.0,163.46,163.41,35.22523457]
[1730600789685,70.0,163.44,163.42,28.78373457]
[1730600790261,6.1177,163.46,163.43,28.78373457]
[1730600790262,70.0,163.46,163.43,28.78373457]
[1730600790471,70.0,163.46,163.44,28.78373457]
[1730600790781,70.0,163.46,163.43,28.78373457]
[1730600791480,70.0,163.5,163.45,28.78373457]
[1730600791687,70.0,163.5,163.46,17.97947353]
[1730600792265,73.15501762,163.51,163.48,17.97947353]
[1730600792471,3.15501762,163.52,163.42,15.5327]
[1730600792700,3.15501762,163.52,163.5,17.97947353]
[1730600792974,74.54827859,163.53,163.5,17.97947353]
[1730600793288,80.66347859,163.53,163.49,17.97947353]
[1730600793463,70.0,163.51,163.48,17.97947353]
[1730600793666,70.0,163.51,163.48,28.76711175]
[1730600794770,70.0,163.49,163.48,28.76711175]
[1730600796396,70.0,163.51,163.48,28.76711175]
[1730600796583,71.05719692,163.51,163.5,28.76711175]
[1730600797193,70.0,163.48,163.47,28.76711175]
[1730600800997,70.0,163.47,163.46,28.76711175]
[1730600801174,70.0,163.46,163.45,28.76711175]
[1730600801381,70.0,163.45,163.44,28.76711175]
[1730600801589,70.0,163.42,163.41,28.76711175]
[1730600801798,70.0,163.42,163.4,29.07250445]
[1730600802105,70.0,163.42,163.41,28.76711175]
[1730600802281,70.0,163.42,163.4,29.07250445]
[1730600802282,93.876884,163.42,163.4,29.07250445]
[1730600802489,25.27014497,163.41,163.4,29.07250445]
[1730600802908,25.17014497,163.41,163.4,29.07250445]
[1730600803203,25.27014497,163.41,163.4,29.07250445]
[1730600803409,1.39326097,163.41,163.4,29.07250445]
[1730600806304,70.0,163.42,163.4,29.07250445]
[1730600806611,70.0,163.42,163.41,28.76711175]
[1730600808500,70.0,163.44,163.41,28.76711175]
[1730600808699,70.0,163.44,163.43,28.76711175]
[1730600810088,73.15501762,163.46,163.43,28.76711175]
[1730600810388,70.0,163.46,163.45,28.76711175]
[1730600810903,73.15501762,163.48,163.45,28.76711175]
[1730600811110,70.0,163.48,163.47,28.76711175]
[1730600811490,73.15501762,163.48,163.47,28.76711175]
[1730600811692,70.0,163.48,163.47,1.2015474]
[1730600812019,70.0,163.45,163.44,28.76711175]
[1730600813014,70.0,163.44,163.43,28.76711175]
[1730600815720,70.0,163.44,163.43,17.9891619]
[1730600816926,71.05708751,163.44,163.43,17.9891619]
[1730600820110,71.05708751,163.44,163.43,35.9783238]
[1730600820419,1.39326097,163.48,163.43,35.9783238]
[1730600820420,70.0,163.46,163.43,35.9783238]
[1730600820602,70.0,163.46,163.45,17.9891619]
[1730600820807,1.0568336,163.47,163.45,17.9891619]
[1730600821010,1.0568336,163.47,163.46,17.9891619]
[1730600822420,70.0,163.5,163.46,17.9891619]
[1730600822597,70.0,163.5,163.49,17.9891619]
[1730600824135,3.15501762,163.53,163.49,35.9783238]
[1730600824305,70.0,163.54,163.52,35.9783238]
[1730600824506,70.0,163.54,163.53,17.9891619]
[1730600825006,73.15501762,163.56,163.53,17.9891619]
[1730600825205,73.15501762,163.56,163.55,17.9891619]
[1730600825206,3.15501762,163.56,163.55,17.9891619]
[1730600825410,70.0,163.6,163.55,17.9891619]
[1730600825608,70.0,163.6,163.59,17.9891619]
[1730600826006,70.0,163.62,163.59,35.9783238]
[1730600826203,70.0,163.62,163.61,17.9891619]
[1730600826714,19.1817546,163.69,163.62,21.7711]
[1730600826715,0.3053927,163.69,163.62,21.7711]
[1730600826901,0.3053927,163.69,163.68,17.9891619]
[1730600827100,70.3053927,163.69,163.68,17.9891619]
[1730600827319,0.3053927,163.69,163.68,17.9891619]
[1730600828224,0.3053927,163.69,163.67,17.9891619]
[1730600829727,0.3053927,163.69,163.62,21.7711]
[1730600829728,0.3053927,163.69,163.68,17.9891619]
[1730600830126,0.3053927,163.69,163.67,17.9891619]
[1730600830330,0.3053927,163.69,163.62,21.7711]
[1730600830331,0.3053927,163.69,163.68,17.9891619]
[1730600830504,0.3053927,163.69,163.67,17.9891619]
[1730600831026,0.3053927,163.69,163.68,17.9891619]
[1730600831325,30.3053927,163.69,163.67,17.9891619]
[1730600831709,30.3053927,163.69,163.66,17.9891619]
[1730600832504,23.776884,163.66,163.62,21.7711]
[1730600832703,23.776884,163.64,163.6,17.9891619]
[1730600832923,23.776884,163.64,163.58,15.6274]
[1730600833113,41.7660459,163.62,163.57,6.1437]
[1730600833314,41.7660459,163.62,163.57,24.1328619]
[1730600833621,100.3053927,163.69,163.57,6.1437]
[1730600833942,17.9891619,163.67,163.62,17.9891619]
[1730600834229,100.3053927,163.69,163.64,17.9891619]
[1730600834411,23.776884,163.68,163.64,17.9891619]
[1730600835609,23.776884,163.68,163.63,17.9891619]
[1730600836727,17.9891619,163.67,163.62,17.9891619]
[1730600836904,41.7660459,163.68,163.62,17.9891619]
[1730600837105,41.7660459,163.68,163.63,17.9891619]
[1730600837925,30.3053927,163.69,163.65,17.9891619]
[1730600839115,30.3053927,163.69,163.66,17.9891619]
[1730600839505,30.3053927,163.69,163.65,24.6548619]
[1730600839711,30.3053927,163.69,163.63,15.3007]
[1730600839712,17.9891619,163.68,163.63,33.2898619]
[1730600840031,30.3053927,163.69,163.65,17.9891619]
[1730600840211,30.3053927,163.69,163.64,17.9891619]
[1730600840406,30.3053927,163.69,163.65,17.9891619]
[1730600841622,20.0,163.68,163.65,17.9891619]
[1730600842238,20.0,163.68,163.66,17.9891619]
[1730600842612,30.3053927,163.69,163.67,17.9891619]
[1730600843434,30.3053927,163.69,163.68,17.9891619]
[1730600846836,30.3053927,163.69,163.68,24.6548619]
[1730600847020,30.3053927,163.69,163.68,6.6657]
[1730600847219,30.3053927,163.69,163.65,17.9891619]
[1730600848034,48.2945546,163.69,163.64,6.6657]
[1730600848225,48.2945546,163.69,163.64,24.6548619]
[1730600848618,17.9891619,163.65,163.6,6.6657]
[1730600848824,17.9891619,163.62,163.6,6.6657]
[1730600849142,23.776884,163.63,163.58,33.2898619]
[1730600849342,17.9891619,163.65,163.59,17.9891619]
[1730600849642,17.9891619,163.66,163.6,17.9891619]
[1730600849815,106.4146927,163.69,163.62,17.9891619]
[1730600849816,43.776884,163.67,163.62,17.9891619]
[1730600850243,41.7660459,163.67,163.62,17.9891619]
[1730600850542,17.9891619,163.65,163.6,17.9891619]
[1730600850915,17.9891619,163.65,163.59,17.9891619]
[1730600851116,17.9891619,163.66,163.61,17.9891619]
[1730600851347,106.4146927,163.69,163.63,17.9891619]
[1730600851348,17.9891619,163.68,163.63,17.9891619]
[1730600851540,30.3053927,163.69,163.64,17.9891619]
[1730600852034,48.2945546,163.69,163.64,6.6657]
[1730600852339,17.9891619,163.68,163.64,6.6657]
[1730600852732,48.2945546,163.69,163.64,6.6657]
[1730600853216,17.9891619,163.65,163.6,6.6657]
[1730600853416,17.9891619,163.64,163.6,6.6657]
[1730600853921,17.9891619,163.62,163.56,24.6548619]
[1730600854121,17.9891619,163.6,163.56,6.6657]
[1730600854744,41.7660459,163.61,163.56,24.6548619]
[1730600855037,17.9891619,163.62,163.57,17.9891619]
[1730600855344,61.7660459,163.62,163.57,17.9891619]
[1730600855646,28.74843911,163.58,163.56,6.6657]
[1730600855818,23.776884,163.56,163.52,6.6657]
[1730600856032,28.74843911,163.55,163.52,6.6657]
[1730600856464,28.74843911,163.56,163.52,6.6657]
[1730600856628,23.74843911,163.56,163.52,6.6657]
[1730600857250,28.74843911,163.55,163.52,6.6657]
[1730600857629,28.74843911,163.56,163.52,6.6657]
[1730600858125,28.74843911,163.57,163.52,35.41413911]
[1730600858329,23.776884,163.59,163.54,28.74843911]
[1730600858530,28.74843911,163.55,163.49,28.74843911]
[1730600859127,28.74843911,163.55,163.5,28.74843911]
[1730600859332,28.74843911,163.55,163.49,28.74843911]
[1730600859534,28.74843911,163.56,163.5,28.74843911]
[1730600859751,28.74843911,163.55,163.49,28.74843911]
[1730600860233,28.74843911,163.53,163.48,28.74843911]
[1730600860433,28.74843911,163.49,163.43,6.6657]
[1730600860628,28.74843911,163.47,163.43,6.6657]
[1730600861050,28.74843911,163.48,163.43,6.6657]
[1730600861255,23.776884,163.49,163.44,28.74843911]
[1730600861952,52.52532311,163.49,163.43,35.41413911]
[1730600862130,52.52532311,163.49,163.44,28.74843911]
[1730600862333,52.52532311,163.47,163.42,28.74843911]
[1730600862859,23.776884,163.47,163.42,28.74843911]
[1730600863430,23.776884,163.47,163.43,28.74843911]
[1730600863633,70.0,163.5,163.46,28.74843911]
[1730600863838,23.776884,163.49,163.46,28.74843911]
[1730600864135,23.776884,163.49,163.45,28.74843911]
[1730600864433,23.776884,163.49,163.47,28.74843911]
[1730600865255,23.776884,163.5,163.47,28.74843911]
[1730600865536,23.776884,163.5,163.48,28.74843911]
[1730600865777,23.776884,163.5,163.47,28.74843911]
[1730600865778,93.776884,163.5,163.47,28.74843911]
[1730600865950,93.776884,163.5,163.46,28.74843911]
[1730600866155,70.0,163.48,163.46,28.74843911]
[1730600866458,23.776884,163.47,163.44,28.74843911]
[1730600867263,23.776884,163.47,163.46,28.74843911]
[1730600868344,70.0,163.5,163.46,28.74843911]
[1730600868547,93.776884,163.5,163.49,28.74843911]
[1730600868751,23.776884,163.49,163.48,28.74843911]
[1730600868942,70.0,163.48,163.46,28.74843911]
[1730600869149,23.776884,163.45,163.44,28.74843911]
[1730600869349,23.776884,163.47,163.44,28.74843911]
[1730600869547,23.776884,163.47,163.46,28.74843911]
[1730600873768,71.39326097,163.48,163.46,28.74843911]
[1730600873769,1.39326097,163.48,163.46,28.74843911]
[1730600873938,1.39326097,163.48,163.47,28.74843911]
[1730600874143,1.05740874,163.51,163.47,28.74843911]
[1730600874443,1.05740874,163.51,163.5,28.74843911]
[1730600874640,70.0,163.53,163.5,28.74843911]
[1730600874867,70.0,163.53,163.51,28.74843911]
[1730600875362,70.0,163.51,163.49,28.74843911]
[1730600875665,70.0,163.51,163.5,28.74843911]
[1730600875849,93.776884,163.51,163.48,28.74843911]
[1730600876049,23.776884,163.5,163.48,28.74843911]
[1730600876350,23.776884,163.5,163.42,22.9689]
[1730600876351,23.776884,163.5,163.47,28.74843911]
[1730600876557,23.776884,163.5,163.46,28.74843911]
[1730600877643,23.776884,163.5,163.42,22.9689]
[1730600877644,23.776884,163.47,163.45,17.98979392]
[1730600878160,23.776884,163.47,163.42,22.9689]
[1730600878161,23.776884,163.49,163.46,17.98979392]
[1730600878341,23.776884,163.49,163.47,17.98979392]
[1730600879148,71.05705068,163.52,163.48,17.98979392]
[1730600879353,23.776884,163.51,163.46,17.98979392]
[1730600879553,23.776884,163.51,163.47,17.98979392]
[1730600879753,70.0,163.5,163.47,17.98979392]
[1730600879956,23.776884,163.49,163.47,17.98979392]
[1730600880262,23.776884,163.49,163.48,17.98979392]
[1730600880767,23.776884,163.49,163.47,17.98979392]
[1730600881263,23.776884,163.49,163.46,17.98979392]
[1730600882344,23.776884,163.49,163.47,17.98979392]
[1730600883063,23.776884,163.47,163.45,17.98979392]
[1730600883455,23.776884,163.45,163.43,17.98979392]
[1730600883655,23.776884,163.45,163.44,17.98979392]
[1730600885053,23.776884,163.45,163.43,17.98979392]
[1730600885253,23.776884,163.45,163.44,17.98979392]
[1730600888767,23.776884,163.45,163.43,17.98979392]
[1730600889353,23.776884,163.45,163.44,17.98979392]
[1730600889970,93.776884,163.44,163.43,17.98979392]
[1730600890778,93.776884,163.44,163.4,18.29518662]
[1730600890779,23.776884,163.41,163.4,18.29518662]
[1730600892672,17.42,163.41,163.4,18.29518662]
[1730600893053,41.196884,163.41,163.4,18.29518662]
[1730600894966,17.42,163.41,163.4,18.29518662]
[1730600896074,1.39326097,163.44,163.4,18.29518662]
[1730600896283,1.39326097,163.44,163.43,17.98979392]
[1730600896876,25.17014497,163.44,163.43,17.98979392]
[1730600897050,55.17014497,163.44,163.43,17.98979392]
[1730600897260,25.17014497,163.44,163.43,17.98979392]
[1730600897765,95.17014497,163.44,163.43,17.98979392]
[1730600897975,125.17014497,163.44,163.43,17.98979392]
[1730600898558,55.17014497,163.44,163.43,17.98979392]
[1730600900083,125.17014497,163.44,163.43,17.98979392]
[1730600901182,70.0,163.42,163.41,17.98979392]
[1730600901482,93.776884,163.42,163.41,17.98979392]
[1730600902865,23.776884,163.42,163.41,17.98979392]
[1730600903082,101.39326097,163.44,163.41,17.98979392]
[1730600903376,101.39326097,163.44,163.43,17.98979392]
[1730600904783,125.17014497,163.44,163.43,17.98979392]
[1730600906393,93.776884,163.43,163.42,17.98979392]
[1730600906700,93.776884,163.41,163.4,0.3053927]
[1730600906987,93.776884,163.41,163.4,18.29518662]
[1730600907691,93.776884,163.41,163.4,0.3053927]
[1730600907864,93.776884,163.41,163.4,18.29518662]
[1730600908873,93.876884,163.41,163.4,18.29518662]
[1730600909078,95.27014497,163.41,163.4,0.3053927]
[1730600912289,95.27014497,163.41,163.4,18.29518662]
[1730600912900,95.27014497,163.41,163.4,0.3053927]
[1730600913274,95.27014497,163.41,163.4,18.29518662]
[1730600913681,95.27014497,163.41,163.4,0.3053927]
[1730600913885,95.27014497,163.41,163.4,18.29518662]
[1730600916399,70.0,163.39,163.38,2.49346264]
[1730600916595,70.0,163.39,163.38,20.48325656]
[1730600918075,71.05562082,163.39,163.38,20.48325656]
[1730600921176,96.42576579,163.39,163.38,2.49346264]
[1730600921373,96.42576579,163.39,163.38,20.48325656]
[1730600923001,72.54888179,163.39,163.38,20.48325656]
[1730600923296,72.44888179,163.39,163.38,20.48325656]
[1730600931601,96.42576579,163.39,163.38,2.49346264]
[1730600931996,192.69826579,163.39,163.38,2.49346264]
[1730600932226,93.976884,163.32,163.31,0.3053927]
[1730600932503,95.37014497,163.32,163.31,0.3053927]
[1730600933795,95.37014497,163.32,163.31,18.29518662]
[1730600934305,95.37014497,163.32,163.24,6.4529]
[1730600934306,70.0,163.26,163.24,6.4529]
[1730600935403,70.0,163.26,163.25,34.33089392]
[1730600937586,1.39326097,163.32,163.25,52.32068784]
[1730600937906,71.39326097,163.32,163.31,17.98979392]
[1730600938521,2.44966381,163.32,163.31,17.98979392]
[1730600938722,1.39326097,163.32,163.31,17.98979392]
[1730600938905,1.05620997,163.35,163.32,6.4529]
[1730600939114,70.0,163.38,163.34,35.97958784]
[1730600939307,70.0,163.38,163.37,17.98979392]
[1730600939612,70.0,163.4,163.37,17.98979392]
[1730600939928,70.0,163.4,163.39,17.98979392]
[1730600940898,70.1,163.4,163.39,17.98979392]
[1730600941419,70.0,163.35,163.32,6.4529]
[1730600942219,70.0,163.35,163.34,17.98979392]
[1730600944207,0.1,163.37,163.34,17.98979392]
[1730600944208,70.0,163.37,163.34,17.98979392]
[1730600944407,70.0,163.37,163.36,17.98979392]
[1730600944911,70.0,163.39,163.36,35.97958784]
[1730600945106,70.0,163.39,163.38,17.98979392]
[1730600945823,70.0,163.38,163.37,17.98979392]
[1730600948813,70.0,163.35,163.34,17.98979392]
[1730600949018,70.0,163.35,163.33,17.98979392]
[1730600949324,70.0,163.35,163.28,40.81189392]
[1730600949325,70.0,163.35,163.34,17.98979392]
[1730600951438,70.0,163.33,163.31,17.98979392]
[1730600952238,70.0,163.33,163.32,17.98979392]
[1730600953810,70.0,163.35,163.32,17.98979392]
[1730600954008,70.0,163.35,163.34,17.98979392]
[1730600954206,70.0,163.35,163.33,17.98979392]
[1730600955110,70.0,163.35,163.34,17.98979392]
[1730600955511,70.0,163.35,163.33,17.98979392]
[1730600956206,70.0,163.35,163.34,17.98979392]
[1730600956723,70.0,163.35,163.32,17.98979392]
[1730600957112,70.0,163.35,163.33,17.98979392]
[1730600957634,70.0,163.33,163.32,17.98979392]
[1730600958909,70.1,163.33,163.32,17.98979392]
[1730600959531,70.0,163.33,163.32,17.98979392]
[1730600960232,71.05651916,163.33,163.32,17.98979392]
[1730600961327,1.05651916,163.33,163.32,17.98979392]
[1730600961509,70.0,163.36,163.32,17.98979392]
[1730600961829,70.0,163.36,163.35,17.98979392]
[1730600961830,71.05637762,163.36,163.35,17.98979392]
[1730600962417,70.0,163.36,163.35,17.98979392]
[1730600966033,70.1,163.36,163.35,17.98979392]
[1730600966609,70.0,163.35,163.34,17.98979392]
[1730600966814,70.0,163.33,163.32,17.98979392]
[1730600968120,70.0,163.33,163.31,17.98979392]
[1730600969533,70.0,163.33,163.3,17.98979392]
[1730600969743,70.0,163.33,163.31,17.98979392]
[1730600970236,70.0,163.33,163.32,17.98979392]
[1730600970627,70.0,163.35,163.32,17.98979392]
[1730600970924,70.0,163.35,163.34,17.98979392]
[1730600973033,70.0,163.37,163.34,17.98979392]
[1730600973237,70.0,163.37,163.35,17.98979392]
[1730600973423,70.0,163.37,163.28,24.41249392]
[1730600973626,1.05642824,163.39,163.36,17.98979392]
[1730600973627,71.05642824,163.39,163.36,17.98979392]
[1730600973942,70.0,163.39,163.38,17.98979392]
[1730600974121,10.80048156,163.4,163.38,17.98979392]
[1730600974518,70.0,163.41,163.39,17.98979392]
[1730600974724,70.0,163.41,163.4,17.98979392]
[1730600974945,30.0,163.44,163.4,17.98979392]
[1730600975133,30.0,163.44,163.43,17.98979392]
[1730600975840,30.0,163.44,163.43,24.46449392]
[1730600976142,30.0,163.44,163.43,57.90798784]
[1730600977431,30.0,163.44,163.43,39.91819392]
[1730600977623,30.0,163.44,163.43,40.93888601]
[1730600978224,30.0,163.44,163.43,33.44349392]
[1730600979333,30.0,163.44,163.4,17.98979392]
[1730600979538,30.0,163.44,163.42,17.98979392]
[1730600982150,30.0,163.44,163.4,17.98979392]
[1730600982320,47.98979392,163.44,163.39,21.9284]
[1730600982727,47.98979392,163.44,163.39,39.91819392]
[1730600983027,70.0,163.41,163.36,17.98979392]
[1730600983229,87.98979392,163.41,163.36,17.98979392]
[1730600983552,17.98979392,163.4,163.35,39.91819392]
[1730600983925,87.98979392,163.41,163.35,39.91819392]
[1730600984333,87.98979392,163.39,163.35,21.9284]
[1730600986249,87.98979392,163.39,163.33,17.98979392]
[1730600986433,87.98979392,163.39,163.34,17.98979392]
[1730600987638,87.98979392,163.39,163.33,17.98979392]
[1730600987943,87.98979392,163.36,163.31,21.9284]
[1730600988147,70.0,163.36,163.32,17.98979392]
[1730600989439,70.0,163.38,163.33,17.98979392]
[1730600989645,70.0,163.38,163.34,17.98979392]
[1730600991029,87.98979392,163.38,163.33,17.98979392]
[1730600991230,70.0,163.36,163.33,17.98979392]
[1730600991436,70.0,163.36,163.31,39.91819392]
[1730600992437,70.0,163.36,163.33,17.98979392]
[1730600992951,70.0,163.38,163.34,17.98979392]
[1730600993155,70.0,163.38,163.33,17.98979392]
[1730600993359,70.0,163.38,163.34,17.98979392]
[1730600994262,70.0,163.38,163.33,17.98979392]
[1730600994439,30.0,163.34,163.33,17.98979392]
[1730600996360,30.0,163.34,163.32,17.98979392]
[1730600996656,100.0,163.34,163.31,17.98979392]
[1730600997033,100.0,163.34,163.3,17.98979392]
[1730600997342,70.0,163.32,163.3,17.98979392]
[1730600998749,70.0,163.3,163.27,17.98979392]
[1730600999066,70.0,163.28,163.26,17.98979392]
[1730601000253,70.0,163.28,163.25,17.98979392]
[1730601000445,70.0,163.26,163.23,24.39948662]
[1730601000954,70.0,163.28,163.25,17.98979392]
[1730601001155,70.0,163.28,163.24,17.98979392]
[1730601001575,70.0,163.28,163.25,17.98979392]
[1730601001744,70.0,163.28,163.24,17.98979392]